Cogmind - Beta 16 @@@ ROGUE MODE // 2025.12.04 @ 17:21:52 Player: FR-13D Result: Destroyed by KE-RUZ(R) with Subdweller Beam Cannon Performance ------------- Evolutions (0) 0 Regions Visited (2) 400 Robots Destroyed (29) 145 Value Destroyed (748) 748 Prototype IDs (5) 100 Alien Tech Used (0) 0 Bonus (0) 0 TOTAL SCORE: 1393 Bonus ------- None Cogmind --------- Core Integrity 0/250 Matter 284/300 Energy 100/100 System Corruption 0% Temperature Cool (9) Movement Treading (240) Ox1 Location -10/Subcaves Parts ------- > --- POWER (1) -------- (None) > --- PROPULSION (2) --- Light Treads Light Treads > --- UTILITY (2) ------ High-capacity Storage Unit Propulsion Shielding > --- WEAPON (2) ------- Subdweller Laser Grenade Launcher > --- INVENTORY (20) --- Subdweller Power Source Light Treads Wheel Wheel Heat Sink Heat Sink Seismic Detector Seismic Detector Propulsion Shielding Propulsion Shielding Light Armor Plating Light Cannon Grenade Launcher Peak State ------------ > --- POWER ------------ Subdweller Power Source > --- PROPULSION ------- Light Treads Light Treads > --- UTILITY ---------- High-capacity Storage Unit Propulsion Shielding > --- WEAPON ----------- Particle Gun Light Cannon > --- INVENTORY -------- Light Treads Wheel Wheel Heat Sink Heat Sink Seismic Detector Seismic Detector Propulsion Shielding Propulsion Shielding Light Armor Plating Small Laser Light Cannon Grenade Launcher Grenade Launcher [Rating: 10] Favorites ----------- Power Ion Engine Engine Ion Engine Propulsion Light Treads Treads Light Treads Wheel Wheel Utility High-capacity Storage Unit Device Seismic Detector Storage High-capacity Storage Unit Protection Propulsion Shielding Weapon Light Cannon Energy Gun Particle Gun Ballistic Gun Assault Rifle Ballistic Cannon Light Cannon Launcher Grenade Launcher Special Weapon Mining Laser Build | -11 -10 -10 ------- Run | Yrd Mat Sub Slots Evolved . | . . . Power . | . . . Propulsion . | . . . Utility . | . . . Weapon . | . . . Parts Attached 24 | 7 9 8 Power 2 | 1 . 1 Engine 2 | 1 . 1 Core . | . . . Reactor . | . . . Propulsion 7 | 2 3 2 Treads 4 | . 2 2 Leg . | . . . Wheel 3 | 2 1 . Hover . | . . . Flight . | . . . Utility 5 | 2 2 1 Device 1 | 1 . . Storage 2 | 1 1 . Processor . | . . . Hackware . | . . . Protection 2 | . 1 1 Artifact . | . . . Weapon 10 | 2 4 4 Energy Gun 4 | 1 2 1 Energy Cannon . | . . . Ballistic Gun 1 | 1 . . Ballistic Cannon 2 | . 1 1 Launcher 2 | . . 2 Special Weapon 1 | . 1 . Impact Weapon . | . . . Slashing Weapon . | . . . Piercing Weapon . | . . . Special Melee Weapon . | . . . Unidentified Prototypes . | . . . Parts Lost 9 | . 2 7 Power 1 | . . 1 Propulsion 2 | . . 2 Utility . | . . . Weapon 6 | . 2 4 Highest Loss Streak 4 | . 1 4 To Critical Strikes . | . . . Average Backups 12 | 5 12 13 Power . | . . . Propulsion 3 | 3 4 3 Utility 5 | . 4 7 Weapon 3 | 1 3 2 Tool/Special . | . . . Unused Backups 10 | 1 4 5 Power 1 | . 1 . Propulsion 3 | 1 2 . Utility 5 | . . 5 Weapon 1 | . 1 . Tool/Special . | . . . Average Slot Usage (%) 96 | . 99 93 Engine 11 | . 14 8 Treads 19 | . 12 27 Wheel 8 | . 15 . Device 7 | . 13 . Storage 14 | . 14 14 Protection 6 | . . 13 Energy Gun 11 | . 10 12 Ballistic Gun 4 | . 7 . Ballistic Cannon 9 | . 6 11 Launcher 1 | . . 3 Special Weapon 1 | . 2 . Peak Build Rating 10 | 7 9 10 Average Rating 8 | 5 8 8 On Entrance 5 | . 7 9 Avg Prop Armor Cover (%) 14 | . . 14 Naked Turns . | . . . Heaviest Build 52 | 15 52 52 Greatest Support 40 | 20 40 40 Greatest Overweight (x) 5 | . 2 5 Average Overweight (x) 1 | . 1 1 Largest Inventory Capacity 20 | 8 20 20 Average Capacity 18 | 7 18 20 Most Carried 17 | 8 17 17 Average Carried 12 | 5 12 13 Final Capacity 20 | 8 20 20 Final Carried 17 | 7 17 13 Class Distribution -------------------- 90% | Mutant 9% | Scavenger-Mutant Dominant Class ---------------- Mutant | -10/Materials Mutant | -10/Subcaves Resources | -11 -10 -10 ----------- Run | Yrd Mat Sub Matter Collected 974 | 300 395 279 Remotely . | . . . Salvage Created 859 | 154 428 277 Parts 62 | 16 27 19 Haulers Intercepted 1 | . 1 . Recyclers Shooed . | . . . Parts Field Recycled . | . . . Retrieved Matter . | . . . Parts Self-Destructed 1 | . . 1 Prevented . | . . . Parts Restored . | . . . Kills | -11 -10 -10 ------- Run | Yrd Mat Sub Combat Hostiles Destroyed 21 | . 12 9 Guns 8 | . 7 1 Cannons 9 | . 5 4 AOE 4 | . . 4 Classes Destroyed 8 | 2 4 2 Tunneler 5 | 4 1 . Hauler 1 | . 1 . Recycler 1 | 1 . . Watcher 1 | . 1 . Swarmer 5 | . 5 . Grunt 7 | . 7 . Sentry 1 | . . 1 Subdweller 8 | . . 8 Best Kill Streak 4 | 4 4 2 Combat Bots Only 4 | . 4 2 Max Kills in Single Turn 2 | 1 1 2 Gunslinging . | . . . Exploded 2 | . . 2 Melee . | . . . Uniques/NPCs Destroyed . | . . . Combat | -11 -10 -10 -------- Run | Yrd Mat Sub Hostile Shots Fired 132 | . 75 57 Missed 33 | . 14 19 Hits 99 | . 61 38 Projectile 99 | . 61 38 Critical Strikes 1 | . 1 . Damage Taken 1461 | . 664 797 Core 272 | . 63 209 Absorbed by Shields . | . . . Redirected to Shielding 48 | . 6 42 Regen/Repaired (Parts) 113 | . 113 . Core Remaining (%) 100 | 100 . . Volleys Fired 98 | 10 55 33 Largest 2 | 2 2 2 Hottest 165 | 70 165 165 Shots Fired 176 | 20 102 54 Gun 113 | 20 71 22 Cannon 52 | . 30 22 Launcher 9 | . . 9 Special 2 | . 1 1 Kinetic 95 | 10 63 22 Thermal 72 | 10 39 23 Explosive 9 | . . 9 Electromagnetic . | . . . Robot Hit Streak 17 | 4 9 17 Robot Miss Streak 3 | 1 3 1 Penetration Max . | . . . Secondary Targets . | . . . Shots Hit Robots 113 | 13 62 38 Core Hits 44 | 6 23 15 Critical Kills . | . . . Critical Parts Destroyed 1 | . 1 . Critical Strikes 4 | . 2 2 Burn 3 | . 1 2 Destroy 1 | . 1 . Melee Attacks . | . . . Impact . | . . . Slashing . | . . . Piercing . | . . . Sneak Attacks . | . . . Combat Hostiles . | . . . Follow-up Attacks . | . . . Damage Inflicted 1781 | 161 881 739 Guns 954 | 161 515 278 Cannons 593 | . 364 229 Explosions 208 | . . 208 Melee . | . . . Ramming 2 | . 2 . Kinetic 898 | 73 596 229 Thermal 673 | 88 283 302 Explosive 208 | . . 208 Electromagnetic . | . . . Impact . | . . . Slashing . | . . . Piercing . | . . . Highest Corruption . | . . . Average Corruption . | . . . Corruption Purged . | . . . Corruption Blocked . | . . . Overload Shots . | . . . Overflow Damage 6 | . 6 . Projectiles 6 | . 6 . Explosions . | . . . Melee . | . . . Knockbacks 8 | . 4 4 Impact . | . . . Kinetic 8 | . 4 4 Secondary . | . . . Self-Inflicted Damage 32 | . . 32 Shots 1 | . . 1 Rammed 1 | . 1 . Targets Rammed 1 | . 1 . Kicked . | . . . Crushed . | . . . Highest Temperature 221 | 36 221 . Average Temperature 59 | 13 68 . Received Heat Transfer 381 | . 291 90 Siege Activations . | . . . Martial Activations . | . . . Shielding Activations . | . . . Robots Disrupted . | . . . Combat Hostiles . | . . . Robots Corrupted . | . . . Combat Hostiles . | . . . Parts Fried . | . . . Impact Corruptions . | . . . Robots Melted . | . . . Combat Hostiles . | . . . Parts Melted 1 | . 1 . Heat Transferred 1894 | 259 794 841 Parts Sabotaged . | . . . Parts Stolen . | . . . Parts Stripped . | . . . Power Chain Reactions . | . . . Alert | -11 -10 -10 ------- Run | Yrd Mat Sub Maximum Alert Level . | . . . Low Security (%) 100 | 100 100 . Level 1 . | . . . Level 2 . | . . . Level 3 . | . . . Level 4 . | . . . Level 5 . | . . . High Security . | . . . Max Security . | . . . Peak Influence 104 | 10 104 . Initial . | . . . Average 40 | 2 44 . Influence Increases 479 | 25 434 20 Destroy 0b10 Robot/C 260 | . 240 20 Destroy 0b10 Robot/NC 40 | 25 15 . Destroy Leader 64 | . 64 . Successful Hack 22 | . 22 . Disable Machine 15 | . 15 . Destroy Structure 3 | . 3 . Lose Combat Pursuer 75 | . 75 . Influence Decreases 479 | 25 394 60 Entered New Map 20 | . . 20 Time Decay 429 | 25 384 20 Lost Part 30 | . 10 20 Squads Dispatched 3 | . 3 . Investigation 2 | . 2 . Extermination . | . . . Reinforcement 1 | . 1 . Assault . | . . . Garrison . | . . . Intercept . | . . . Searches Triggered . | . . . Construction Impeded . | . . . Haulers Reinforced . | . . . Active Scanning Responses . | . . . Cargo Convoy Interrupts . | . . . Stealth | -11 -10 -10 --------- Run | Yrd Mat Sub Distress Signals 5 | . 5 . Communications Jammed . | . . . Distress Signals . | . . . Times Spotted 35 | . 24 11 Peak Tracking Total 5 | . 5 2 Tactical Retreats 4 | . 4 . Traps | -11 -10 -10 ------- Run | Yrd Mat Sub Traps Triggered 2 | . 2 . Indirectly . | . . . Trap Hack Attempts . | . . . Triggered . | . . . Disarmed . | . . . Reprogrammed . | . . . Reused . | . . . Traps Extracted . | . . . Installed . | . . . Triggered . | . . . Machines | -11 -10 -10 ---------- Run | Yrd Mat Sub Machines Disabled 1 | . 1 . Max in Single Turn 1 | . 1 . Machines Repaired . | . . . Machines Dismantled . | . . . Machines Sabotaged . | . . . Overloaded Fab Kills . | . . . Hacking | -11 -10 -10 --------- Run | Yrd Mat Sub Machines Accessed 5 | . 5 . Terminals 4 | . 4 . Fabricators . | . . . Repair Stations 1 | . 1 . Recycling Units . | . . . Scanalyzers . | . . . Garrison Access . | . . . Total Hacks 10 | . 10 . Successful 4 | . 4 . Failed 6 | . 6 . Catastrophic 1 | . 1 . Database Lockouts . | . . . Manual 3 | . 3 . Terminals 7 | . 7 . Fabricators . | . . . Repair Stations 3 | . 3 . Recycling Units . | . . . Scanalyzers . | . . . Garrison Access . | . . . Terminal Hacks 2 | . 2 . Prototype ID Bank 2 | . 2 . Fabricator Hacks . | . . . Repair Station Hacks 2 | . 2 . Scan Component 1 | . 1 . Repair 1 | . 1 . Recycling Unit Hacks . | . . . Scanalyzer . | . . . Garrison Access Hacks . | . . . Unauthorized Hacks . | . . . Terminals . | . . . Fabricators . | . . . Repair Stations . | . . . Recycling Units . | . . . Scanalyzers . | . . . Garrison Access . | . . . Data Cores Recovered . | . . . Used . | . . . Hacking Detections 4 | . 4 . Full Trace Events 1 | . 1 . Feedback Events . | . . . Feedback Blocked . | . . . Robot Schematics Acquired . | . . . Robots Built . | . . . Authchips . | . . . Time . | . . . Total Robot Build Rating . | . . . Part Schematics Acquired . | . . . Parts Built . | . . . Authchips . | . . . Time . | . . . Total Part Build Rating . | . . . Part Studies Acquired . | . . . Parts Repaired 1 | . 1 . Time 26 | . 26 . Parts Recycled . | . . . Recycled Matter . | . . . Retrieved Matter . | . . . Retrieved Components . | . . . Parts Scanalyzed . | . . . Part Schematics Acquired . | . . . Parts Damaged . | . . . Bothacking | -11 -10 -10 ------------ Run | Yrd Mat Sub Used RIF Installer . | . . . Robots Hacked . | . . . Non-combat . | . . . Combat . | . . . Robot Hacks Applied . | . . . Relay Couplers Released . | . . . Fabnet Peak Effective % . | . . . Robots Rewired . | . . . Allies Hacked . | . . . Hacks Repelled . | . . . Allies | -11 -10 -10 -------- Run | Yrd Mat Sub Total Allies . | . . . Largest Group . | . . . Highest-Rated Group . | . . . Highest-Rated Ally . | . . . Total Orders . | . . . Ally Attacks . | . . . Total Damage . | . . . Kills . | . . . Allies Corrupted . | . . . Allies Melted . | . . . Intel | -11 -10 -10 ------- Run | Yrd Mat Sub Active Infowar (turns) 1167 | 28 1123 16 Seismic 1167 | 28 1123 16 Robot Analysis Total . | . . . Derelict Logs Recovered . | . . . Drone Launches . | . . . Drone Recoveries . | . . . Exploration | -11 -10 -10 ------------- Run | Yrd Mat Sub Turns Passed 2290 | 118 1195 977 Spaces Moved 1146 | 85 702 359 Core 6 | 6 . . Treads 519 | . 166 353 Legs . | . . . Wheels 621 | 79 536 6 Hover . | . . . Flight . | . . . Fastest Speed 50 | 50 80 110 Average Speed 163 | 77 134 238 Slowest Speed 240 | 80 240 240 Overloaded Moves . | . . . Propulsion Burnouts . | . . . Robots Hopped . | . . . Potential Cave-ins . | . . . Cave-ins Triggered . | . . . Exploration Rate (%) 42 | 5 90 31 Regions Visited 2 Branch Regions 1 Pre-discovered Areas . | . . . Known Exits Taken . | . . . Unknown Exits Taken 2 | 1 1 . Scrap Searched . | . . . Spaces Dug 5 | . 1 4 Terrain Destroyed 47 | . 1 46 Melee . | . . . Projectile 1 | . 1 . AOE 46 | . . 46 Terrain Rammed . | . . . Walls Destroyed . | . . . Machines Disabled . | . . . Actions | -11 -10 -10 --------- Run | Yrd Mat Sub Total 1373 | 114 838 421 Wait 51 | . 36 15 Move 1144 | 84 701 359 Hop . | . . . Pick Up 27 | 10 17 . Fast Attach 12 | 7 3 2 Attach 6 | . 1 5 Detach 1 | . . 1 Swap 23 | . 17 6 Drop 10 | 3 7 . Fire 98 | 10 55 33 Melee . | . . . Ram . | . . . Kick . | . . . Crush 1 | . 1 . Escape Stasis . | . . . Rewire . | . . . Trap . | . . . Miscellaneous . | . . . Route ------- -11/Scrapyard -10/Materials (discovered 6 exits: [*Mat x3] / [*Min x2] / [*Sub]) -10/Subcaves History --------- Turn | Location | Event 29 | -11/Scrapyard | Discovered new exit (range 14) 119 | -11/Scrapyard | Entered Materials 286 | -10/Materials | Discovered new exit (range 5) 300 | -10/Materials | Build established: Mutant 472 | -10/Materials | Discovered new exit (range 5) 578 | -10/Materials | Discovered new exit (range 3) 619 | -10/Materials | Derelicts attacked the area 686 | -10/Materials | Discovered new exit (range 15) 1005 | -10/Materials | Repaired Lgt. Treads 1054 | -10/Materials | Discovered new exit (range 12) 1305 | -10/Materials | Discovered new exit (range 8) 1314 | -10/Materials | Entered Subcaves 1315 | -10/Subcaves | Ambushed by Subdwellers from Twisted Machinery 1315 | -10/Subcaves | Approached by a straggling Scientist 1331 | -10/Subcaves | Core integrity fell below 50% 1371 | -10/Subcaves | Lost 4 parts (1p2n1w) 1784 | -10/Subcaves | Core integrity fell below 20% 2051 | -10/Subcaves | A swath of the cavern ceiling suddenly collapsed 2291 | -10/Subcaves | Destroyed by KE-RUZ(R) with Subdweller Beam Cannon Last Messages --------------- MU-H4X(c): "I think it's somewhere northeast of here" 02051_ MU-H4X(c) crushed by falling debris. 02051_ MU-H4X(c) system corrupted by crushing effect. A swath of the cavern ceiling suddenly collapses. MU-H4X(c): "I think it's somewhere northeast of here" 02093_ Y5-GCD(R) knocked back. 02099_ Sml. Laser destroyed. 02102_ Y5-GCD(R) destroyed. 02107_ Acquired Sub. Laser. 02108_ Acquired 2 matter. 02110_ Acquired 43 matter. 02113_ Acquired 4 matter. 02118_ Acquired 3 matter. MU-H4X(c): "I think it's somewhere northeast of here" 02217_ NC-WB9(R) destroyed. 02220_ The unstable cave ceiling collapses. 02229_ Acquired 40 matter. MU-H4X(c): "I think it's somewhere northeast of here" 02234_ Acquired 18 matter. MU-H4X(c): "I think it's somewhere northeast of here" Map ----- +----------------------------------------------------+ | ?????????????????????????????????????# ?????????? | | ?????????????????????#####???????????# ?????????? | | ????????????????????## #??????????? #????????? | | ????????????????????# ??#####????# ###??????? | | ????????????????????# ??? %#????# ##?????? | | ????????????????????? ##? #????# ####??? | | ?????????????????????? #?# ##???# #??? | | ??????????????????????? ### ##??# #??? | | ????????????????????????# ## #### #??? | | ?????????????????????????# ## #### | | ??????????????????????##?# ### | | ?????????????????????## ??# #?# ### | | ????????????????????## ?## #?# ### ## # | | ???????????????????## ## #### ######## | | ???????????????????# ## # ####????# | | ???????????????????## ## ##???# | | ???????????????????## ### &[ #???# | | ???????????????????# ### ! * #??# | | ???????????????????# ### & #??# | | ???????????????????## c #?## #?## | | ????????????????????# #### #?## | | ????????????????????# ## # # ### | | ???????????????????## ## ### # #### | | ????????????????#### #??## #??# | | ????????????????# ##???? #"# # | | ????????? @ ##???? "####" | | ????????? #????# "# #" | | ?????????? #?## ""?## | | ??????????# #### ##??# ???? | | ??????????? ???? #???## ????? | | ??????????? ???? #????#?????? | | ??????????? ## ????? ??????????? | | ???????????? ??# ????? ??????????? | | ????????????#??# ##?????? ##### ???????????? | | ??????????????# ????????? #????????????????? | | ??????????????# R ???????????????????????????? | | ??????????????R # ???????????????????????????? | | ????????????????## ????????????????????????????? | | ??????????????????#? ????????????????????????????? | | ?????????????????????????????????????????????????? | | ?????????????????????????????????????????????????? | | ?????????????????????????????????????????????????? | | ?????????????????????????????????????????????????? | | ?????????????????????????????????????????????????? | | ?????????????????????????????????????????????????? | | ?????????????????????????????????????????????????? | | ?????????????????????????????????????????????????? | | ?????????????????????????????????????????????????? | | ?????????????????????????????????????????????????? | | ?????????????????????????????????????????????????? | +----------------------------------------------------+ Best States ------------- Heat Dissipation 25 Energy Generation 15 Energy Capacity 250 Matter Stores 300 Matter Capacity 300 Sight Range 16 Terrain Scan Density 10 Propulsion Shielding 33 Evasion (%) 44 Recoil Reduction 2 Item Schematics ----------------- None Robot Schematics ------------------ None Fabricated ------------ Nothing Repaired ---------- Lgt. Treads | 19% | -10/Materials Studied --------- None Alien Tech Used ----------------- None Achievements -------------- None Challenges ------------ None Game ------ Seed ResetDeuteriumLance Manual? 0 Play Time 00:14:09 Cumulative 104.1 hours Start 2025.12.04 @ 17:11:08 End 2025.12.04 @ 17:21:52 Sessions 1 Manual Loads 0 Difficulty Rogue Special Mode None Game No. 107 Rogue 107 Adventurer 0 Explorer 0 Win Type - Total 0 Types 0/0/0/0/0/0/0/0/0/0 Lore% 62 Gallery% 47 Achievement% 39 Wizard Run 0 Options --------- Layout 0 ASCII 0 Keyboard 1 Movement Vi Keybinds 0 Fullscreen 2 Font 18/SmallcapsGlow Map View 76x50 Zoom Use 0% Tactical HUD 1 Map Filters NONE Filters NONE Steam 1 RUN: 2c168c34-4ba4-490d-b679-a3dbed5c13a6